Cogmind - Beta 15 @@@ ROGUE MODE // 2025.08.07 @ 17:35:54 Player: BattleBruvva Result: Destroyed by OP-7YI(R) with Subdweller Machine Gun Performance ------------- Evolutions (0) 0 Regions Visited (2) 400 Robots Destroyed (11) 55 Value Destroyed (297) 297 Prototype IDs (0) 0 Alien Tech Used (0) 0 Bonus (0) 0 TOTAL SCORE: 752 Bonus ------- None Cogmind --------- Core Integrity 0/250 Matter 300/300 Energy 100/100 System Corruption 0% Temperature Cool (9) Movement Core (350) Ox6 Location -10/Subcaves Parts ------- > --- POWER (1) -------- (None) > --- PROPULSION (2) --- (None) > --- UTILITY (2) ------ Large Storage Unit > --- WEAPON (2) ------- (None) > --- INVENTORY (15) --- Improved Treads Compact Wheel Compact Wheel Improved Heat Sink Improved Terrain Scanner Salvage Targeting Computer Core Shielding Scrap Shield Small Laser Assault Rifle Peak State ------------ > --- POWER ------------ Light Ion Engine > --- PROPULSION ------- Improved Treads Spiked Treads > --- UTILITY ---------- Large Storage Unit Seismic Detector > --- WEAPON ----------- Riot Gun Medium Laser > --- INVENTORY -------- Improved Treads Compact Wheel Compact Wheel Improved Heat Sink Improved Terrain Scanner Salvage Targeting Computer Core Shielding Scrap Shield Small Laser Assault Rifle [Rating: 12] Favorites ----------- Power Ion Engine Engine Ion Engine Propulsion Improved Treads Treads Improved Treads Wheel Compact Wheel Utility Seismic Detector Device Seismic Detector Storage Small Storage Unit Weapon Small Laser Energy Gun Small Laser Build | -11 -10 -10 ------- Run | Yrd Mat Sub Slots Evolved . | . . . Power . | . . . Propulsion . | . . . Utility . | . . . Weapon . | . . . Parts Attached 16 | 7 7 2 Power 2 | 1 1 . Engine 2 | 1 1 . Core . | . . . Reactor . | . . . Propulsion 5 | 2 2 1 Treads 3 | . 2 1 Leg . | . . . Wheel 2 | 2 . . Hover . | . . . Flight . | . . . Utility 3 | 2 1 . Device 1 | 1 . . Storage 2 | 1 1 . Processor . | . . . Hackware . | . . . Protection . | . . . Artifact . | . . . Weapon 6 | 2 3 1 Energy Gun 6 | 2 3 1 Energy Cannon . | . . . Ballistic Gun . | . . . Ballistic Cannon . | . . . Launcher . | . . . Special Weapon . | . . . Impact Weapon . | . . . Slashing Weapon . | . . . Piercing Weapon . | . . . Special Melee Weapon . | . . . Unidentified Prototypes . | . . . Parts Lost 8 | . 1 7 Power 2 | . 1 1 Propulsion 2 | . . 2 Utility 1 | . . 1 Weapon 3 | . . 3 Highest Loss Streak 7 | . 1 7 To Critical Strikes . | . . . Average Backups 7 | 4 7 9 Power . | . . . Propulsion 2 | 3 2 2 Utility 2 | . 2 4 Weapon 1 | . 1 2 Tool/Special . | . . . Unused Backups 11 | . 3 8 Power . | . . . Propulsion 5 | . 3 2 Utility 5 | . . 5 Weapon 1 | . . 1 Tool/Special . | . . . Average Slot Usage (%) 99 | . 99 96 Engine 13 | . 13 13 Treads 21 | . 20 26 Wheel 5 | . 7 . Device 14 | . 14 14 Storage 14 | . 14 14 Energy Gun 27 | . 28 26 Peak Build Rating 12 | 8 10 12 Average Rating 9 | 5 9 10 On Entrance 6 | . 8 10 Naked Turns . | . . . Heaviest Build 29 | 15 29 29 Greatest Support 46 | 32 46 46 Greatest Overweight (x) 7 | . . 7 Average Overweight (x) . | . . . Largest Inventory Capacity 15 | 8 15 15 Average Capacity 11 | 6 10 15 Most Carried 12 | 8 9 12 Average Carried 8 | 4 7 10 Final Capacity 15 | 8 15 15 Final Carried 11 | 8 8 11 Class Distribution -------------------- 100% | Mutant Dominant Class ---------------- Mutant | -10/Materials Mutant | -10/Subcaves Resources | -11 -10 -10 ----------- Run | Yrd Mat Sub Matter Collected 350 | 270 70 10 Remotely . | . . . Salvage Created 505 | 112 336 57 Parts 23 | 7 14 2 Haulers Intercepted . | . . . Recyclers Shooed 1 | . 1 . Parts Field Recycled . | . . . Retrieved Matter . | . . . Parts Self-Destructed 1 | . . 1 Prevented . | . . . Kills | -11 -10 -10 ------- Run | Yrd Mat Sub Combat Hostiles Destroyed 6 | . 5 1 Guns 5 | . 4 1 Classes Destroyed 5 | 2 2 1 Tunneler 1 | 1 . . Recycler 2 | 1 1 . Watcher 2 | . 2 . Grunt 5 | . 5 . Subdweller 1 | . . 1 Best Kill Streak 2 | 2 2 1 Combat Bots Only 2 | . 2 1 Max Kills in Single Turn 1 | 1 1 1 Gunslinging . | . . . Exploded . | . . . Melee . | . . . Uniques/NPCs Destroyed . | . . . Combat | -11 -10 -10 -------- Run | Yrd Mat Sub Hostile Shots Fired 81 | . 40 41 Missed 24 | . 7 17 Hits 57 | . 33 24 Projectile 57 | . 33 24 Damage Taken 1131 | . 495 636 Core 258 | . 65 193 Absorbed by Shields . | . . . Core Remaining (%) 100 | 100 . . Volleys Fired 42 | 5 32 5 Largest 2 | 2 2 2 Hottest 100 | 80 90 100 Shots Fired 83 | 10 63 10 Gun 83 | 10 63 10 Cannon . | . . . Launcher . | . . . Special . | . . . Kinetic . | . . . Thermal 54 | . 47 7 Explosive . | . . . Electromagnetic 29 | 10 16 3 Robot Hit Streak 11 | 3 11 7 Robot Miss Streak 3 | 1 3 1 Penetration Max . | . . . Secondary Targets 1 | . . 1 Max Gunslinging Chain 1 | . . 1 Shots Hit Robots 59 | 6 44 9 Core Hits 22 | 3 16 3 Critical Kills . | . . . Critical Parts Destroyed . | . . . Critical Strikes 1 | . 1 . Burn 1 | . 1 . Melee Attacks . | . . . Impact . | . . . Slashing . | . . . Piercing . | . . . Sneak Attacks . | . . . Combat Hostiles . | . . . Follow-up Attacks . | . . . Damage Inflicted 949 | 77 689 183 Guns 757 | 77 555 125 Cannons . | . . . Explosions 185 | . 127 58 Melee . | . . . Ramming 7 | . 7 . Kinetic . | . . . Thermal 667 | . 538 129 Explosive . | . . . Electromagnetic 275 | 77 144 54 Impact . | . . . Slashing . | . . . Piercing . | . . . Highest Corruption . | . . . Average Corruption . | . . . Corruption Purged . | . . . Corruption Blocked . | . . . Overload Shots . | . . . Overflow Damage . | . . . Projectiles . | . . . Explosions . | . . . Melee . | . . . Knockbacks . | . . . Impact . | . . . Kinetic . | . . . Secondary . | . . . Self-Inflicted Damage 115 | . 71 44 Shots 3 | . 2 1 Rammed 1 | . 1 . Targets Rammed 1 | . 1 . Kicked . | . . . Crushed . | . . . Highest Temperature 246 | 54 246 11 Average Temperature 76 | 25 87 5 Received Heat Transfer 360 | . 246 114 Siege Activations . | . . . Martial Activations . | . . . Shielding Activations . | . . . Robots Disrupted . | . . . Combat Hostiles . | . . . Robots Corrupted . | . . . Combat Hostiles . | . . . Parts Fried . | . . . Impact Corruptions . | . . . Robots Melted 1 | . 1 . Combat Hostiles 1 | . 1 . Parts Melted 1 | . 1 . Heat Transferred 1382 | . 1134 248 Parts Sabotaged . | . . . Parts Stolen . | . . . Parts Stripped . | . . . Power Chain Reactions 4 | . 3 1 Alert | -11 -10 -10 ------- Run | Yrd Mat Sub Maximum Alert Level . | . . . Low Security (%) 100 | 100 100 . Level 1 . | . . . Level 2 . | . . . Level 3 . | . . . Level 4 . | . . . Level 5 . | . . . High Security . | . . . Max Security . | . . . Peak Influence 71 | 5 71 . Initial . | . . . Average 13 | . 15 . Influence Increases 218 | 10 208 . Destroy 0b10 Robot/C 100 | . 100 . Destroy 0b10 Robot/NC 25 | 10 15 . Destroy Leader 24 | . 24 . Successful Hack 9 | . 9 . Disable Machine 15 | . 15 . Destroy Structure 15 | . 15 . Lose Combat Pursuer 30 | . 30 . Influence Decreases 218 | 10 199 9 Entered New Map 5 | . . 5 Time Decay 203 | 10 189 4 Lost Part 10 | . 10 . Squads Dispatched . | . . . Investigation . | . . . Extermination . | . . . Reinforcement . | . . . Assault . | . . . Garrison . | . . . Intercept . | . . . Searches Triggered . | . . . Construction Impeded . | . . . Haulers Reinforced . | . . . Active Scanning Responses . | . . . Cargo Convoy Interrupts . | . . . Stealth | -11 -10 -10 --------- Run | Yrd Mat Sub Distress Signals . | . . . Communications Jammed . | . . . Distress Signals . | . . . Times Spotted 23 | . 12 11 Peak Tracking Total 7 | . 3 7 Tactical Retreats 2 | . 2 . Traps | -11 -10 -10 ------- Run | Yrd Mat Sub Traps Triggered . | . . . Indirectly . | . . . Trap Hack Attempts . | . . . Triggered . | . . . Disarmed . | . . . Reprogrammed . | . . . Reused . | . . . Traps Extracted . | . . . Installed . | . . . Triggered . | . . . Machines | -11 -10 -10 ---------- Run | Yrd Mat Sub Machines Disabled 1 | . 1 . Max in Single Turn 1 | . 1 . Machines Repaired . | . . . Machines Dismantled . | . . . Machines Sabotaged . | . . . Overloaded Fab Kills . | . . . Hacking | -11 -10 -10 --------- Run | Yrd Mat Sub Machines Accessed 4 | . 4 . Terminals 4 | . 4 . Fabricators . | . . . Repair Stations . | . . . Recycling Units . | . . . Scanalyzers . | . . . Garrison Access . | . . . Total Hacks 13 | . 13 . Successful 6 | . 6 . Failed 7 | . 7 . Catastrophic . | . . . Database Lockouts . | . . . Manual 9 | . 9 . Terminals 13 | . 13 . Fabricators . | . . . Repair Stations . | . . . Recycling Units . | . . . Scanalyzers . | . . . Garrison Access . | . . . Terminal Hacks 2 | . 2 . Robot Analysis 2 | . 2 . Fabricator Hacks . | . . . Repair Station Hacks . | . . . Recycling Unit Hacks . | . . . Scanalyzer . | . . . Garrison Access Hacks . | . . . Unauthorized Hacks 4 | . 4 . Terminals 4 | . 4 . Botnet 4 | . 4 . Fabricators . | . . . Repair Stations . | . . . Recycling Units . | . . . Scanalyzers . | . . . Garrison Access . | . . . Data Cores Recovered . | . . . Used . | . . . Hacking Detections 4 | . 4 . Full Trace Events 1 | . 1 . Feedback Events . | . . . Feedback Blocked . | . . . Robot Schematics Acquired . | . . . Robots Built . | . . . Authchips . | . . . Time . | . . . Total Robot Build Rating . | . . . Part Schematics Acquired . | . . . Parts Built . | . . . Authchips . | . . . Time . | . . . Total Part Build Rating . | . . . Parts Repaired . | . . . Time . | . . . Parts Recycled . | . . . Recycled Matter . | . . . Retrieved Matter . | . . . Retrieved Components . | . . . Parts Scanalyzed . | . . . Part Schematics Acquired . | . . . Parts Damaged . | . . . Bothacking | -11 -10 -10 ------------ Run | Yrd Mat Sub Used RIF Installer . | . . . Robots Hacked . | . . . Non-combat . | . . . Combat . | . . . Robot Hacks Applied . | . . . Relay Couplers Released . | . . . Fabnet Peak Effective % . | . . . Robots Rewired . | . . . Allies Hacked . | . . . Hacks Repelled . | . . . Allies | -11 -10 -10 -------- Run | Yrd Mat Sub Total Allies . | . . . Largest Group . | . . . Highest-Rated Group . | . . . Highest-Rated Ally . | . . . Total Orders . | . . . Ally Attacks . | . . . Total Damage . | . . . Kills . | . . . Allies Corrupted . | . . . Allies Melted . | . . . Intel | -11 -10 -10 ------- Run | Yrd Mat Sub Active Infowar (turns) 999 | 29 777 193 Seismic 999 | 29 777 193 Robot Analysis Total 2 | . 2 . Derelict Logs Recovered . | . . . Drone Launches . | . . . Drone Recoveries . | . . . Exploration | -11 -10 -10 ------------- Run | Yrd Mat Sub Turns Passed 1084 | 112 777 195 Spaces Moved 637 | 81 449 107 Core 5 | 3 . 2 Treads 363 | . 258 105 Legs . | . . . Wheels 269 | 78 191 . Hover . | . . . Flight . | . . . Fastest Speed 50 | 50 100 160 Average Speed 134 | 98 134 164 Slowest Speed 400 | 100 160 400 Overloaded Moves . | . . . Propulsion Burnouts . | . . . Robots Hopped . | . . . Potential Cave-ins . | . . . Cave-ins Triggered . | . . . Exploration Rate (%) 25 | 5 63 8 Regions Visited 2 Branch Regions 1 Pre-discovered Areas . | . . . Known Exits Taken . | . . . Unknown Exits Taken 2 | 1 1 . Scrap Searched 1 | . . 1 Spaces Dug . | . . . Terrain Destroyed 15 | . 14 1 Melee . | . . . Projectile . | . . . AOE 15 | . 14 1 Terrain Rammed . | . . . Walls Destroyed . | . . . Machines Disabled . | . . . Actions | -11 -10 -10 --------- Run | Yrd Mat Sub Total 774 | 100 558 116 Wait 62 | . 62 . Move 635 | 80 448 107 Hop . | . . . Pick Up 14 | 8 4 2 Fast Attach 7 | 7 . . Attach 2 | . 1 1 Detach . | . . . Swap 7 | . 6 1 Drop 4 | . 4 . Fire 42 | 5 32 5 Melee . | . . . Ram . | . . . Kick . | . . . Crush 1 | . 1 . Escape Stasis . | . . . Rewire . | . . . Trap . | . . . Miscellaneous . | . . . Route ------- -11/Scrapyard -10/Materials (discovered 4 exits: [*Mat] / [*Min x2] / [*Sub]) -10/Subcaves History --------- Turn | Location | Event 21 | -11/Scrapyard | Discovered new exit (range 16) 113 | -11/Scrapyard | Entered Materials 187 | -10/Materials | Discovered new exit (range 13) 214 | -10/Materials | Discovered new exit (range 6) 303 | -10/Materials | Build established: Mutant 437 | -10/Materials | Discovered new exit (range 16) 875 | -10/Materials | Discovered new exit (range 10) 890 | -10/Materials | Entered Subcaves 891 | -10/Subcaves | Approached by a straggling Scientist 1052 | -10/Subcaves | Ambushed by swarm of Subdwellers 1080 | -10/Subcaves | Core integrity fell below 50% 1083 | -10/Subcaves | Core integrity fell below 20% 1085 | -10/Subcaves | Destroyed by OP-7YI(R) with Subdweller Machine Gun Last Messages --------------- Machinery. 01058_ R9-AEE(R) emerges from the Twisted Machinery. 01059_ OP-7YI(R) emerges from the Twisted Machinery. 01061_ Sml. Laser destroyed. 01061_ ZW-Y9W(g) destroyed. 01062_ IY-P8V(R) suffers critical hit (Burn). 01072_ Chain reaction triggered in Sub. Power Source. 01073_ 2H-LF1(g) destroyed. 01073_ Imp. Treads destroyed. 01074_ PT-HPF(c) destroyed. 01075_ 9C-1X7(R) destroyed. 01075_ Switching to secondary target: FA-ZBO(R). 01076_ Spk. Treads destroyed. 01078_ Lgt. Ion Engine destroyed. 01078_ Riot Gun destroyed. 01079_ Med. Laser destroyed. 01083_ Seismic Detector destroyed. Map ----- +----------------------------------------------------+ | | | | | ?????????????????????????????????????????????????? | | ?????????????????????????????????????????????????? | | ?????????????????????????????????????????????????? | | ?????????????????????????????????????????????????? | | ?????????????????????????????????????????????????? | | ?????????????????????????????????????????????????? | | ?????????????????????????????????????????????????? | | ?????????????????????????????????????????????????? | | ?????????????????????????????????????????????????? | | ?????????????????????????????????????????????????? | | ?????????????????????????????????????????????????? | | ?????????????????????????????????????????????????? | | ???????????##"???????????????????????????????????? | | ????????### "????????????????????????????????????? | | ????????# ????????????###?##???????????????????? | | ???????## #????????????? ## ###?????????????????? | | ????#### #?##?????????? ##????????????????? | | ???## # ## #?????????## #????????????????? | | ??## #?????????#; #?????????????????? | | #?#% ##??????### ###???????????????? | | #?# ##?????#; ##??????????????? | | ### ## ##????# #??????????????? | | # # ## #????# = #??????????????? | | # ## #???## @% #??????????????? | | # #### ## ## R!= ! ##??????????????? | | # #?## ###;""RR%* # # #??????????????? | | #??### #?##""= [=## ##?? R%! #??????????? | | #????# ##%!=R[ ####?????# #??????????? | | ##????# %&!%%### ##??????????? #??????????? | | # #?????## =!*=##?###????????????????????????? | | #??????#### = ##?????????????????????????????? | | #?????????## #??????????????????????????????? | | ## #?????????## ##??????????????????????????????? | | ##?##??????????###???????????????????????????????? | | ?????????????????????????????????????????????????? | | ?????????????????????????????????????????????????? | | ?????????????????????????????????????????????????? | | ?????????????????????????????????????????????????? | | ?????????????????????????????????????????????????? | | ?????????????????????????????????????????????????? | | ?????????????????????????????????????????????????? | | ?????????????????????????????????????????????????? | | ?????????????????????????????????????????????????? | | ?????????????????????????????????????????????????? | | ?????????????????????????????????????????????????? | | ?????????????????????????????????????????????????? | | ?????????????????????????????????????????????????? | | ?????????????????????????????????????????????????? | +----------------------------------------------------+ Best States ------------- Heat Dissipation 25 Energy Generation 10 Energy Capacity 250 Matter Stores 300 Matter Capacity 300 Sight Range 16 Terrain Scan Density 10 Evasion (%) 40 Recoil Reduction 2 Item Schematics ----------------- None Robot Schematics ------------------ None Fabricated ------------ Nothing Repaired ---------- Nothing Alien Tech Used ----------------- None Achievements -------------- None Challenges ------------ None Game ------ Seed TerrorWarlordFocus Manual? 0 Play Time 00:08:25 Cumulative 51.1 hours Start 2025.08.07 @ 17:29:06 End 2025.08.07 @ 17:35:54 Sessions 1 Manual Loads 0 Difficulty Rogue Special Mode None Game No. 24 Rogue 10 Adventurer 14 Explorer 0 Win Type - Total 4 Types 1/0/2/0/0/0/0/1/0/0 Lore% 46 Gallery% 40 Achievement% 41 Wizard Run 0 Options --------- Layout 2 ASCII 0 Keyboard 1 Movement Arrows Keybinds 0 Fullscreen 2 Font 24/Smallcaps Map View 50x44 Zoom Use 0% Tactical HUD 1 Map Filters NONE Filters NONE Steam 1 RUN: 55169338-350d-4956-9188-f01b1cb25802